fUSD/lending_fUSD_20260628
["ID","MTS","AMOUNT","RATE_DAILY","PERIOD"]
[426574180,1782613840000,-500.0,0.000289,7]
[426574184,1782613840000,-500.0,0.000289,7]
[426574179,1782613840000,-500.0,0.000289,7]
[426574177,1782613840000,-500.0,0.000289,7]
[426574171,1782613840000,-500.0,0.00028899,2]
[426574189,1782613840000,-500.0,0.000289,7]
[426574185,1782613840000,-500.0,0.000289,7]
[426574198,1782613840000,-500.0,0.000289,7]
[426574194,1782613840000,-500.0,0.000289,7]
[426574196,1782613840000,-500.0,0.000289,7]
[426574200,1782613840000,-500.0,0.000289,7]
[426574199,1782613840000,-500.0,0.000289,7]
[426574197,1782613840000,-500.0,0.000289,7]
[426574190,1782613840000,-500.0,0.000289,7]
[426574192,1782613840000,-500.0,0.000289,7]
[426574202,1782613840000,-500.0,0.000289,7]
[426574193,1782613840000,-500.0,0.000289,7]
[426574191,1782613840000,-500.0,0.000289,7]
[426574195,1782613840000,-500.0,0.000289,7]
[426574255,1782613841000,-500.0,0.000289,7]
[426574250,1782613841000,-500.0,0.000289,7]
[426574254,1782613841000,-500.0,0.000289,7]
[426574253,1782613841000,-500.0,0.000289,7]
[426574252,1782613841000,-500.0,0.000289,7]
[426574246,1782613841000,-500.0,0.000289,7]
[426574248,1782613841000,-500.0,0.000289,7]
[426574243,1782613841000,-500.0,0.000289,7]
[426574245,1782613841000,-500.0,0.000289,7]
[426574244,1782613841000,-500.0,0.000289,7]
[426574251,1782613841000,-518.05,0.000289,7]
[426574238,1782613841000,-500.0,0.000289,7]
[426574242,1782613841000,-500.0,0.000289,7]
[426574241,1782613841000,-500.0,0.000289,7]
[426574249,1782613841000,-500.0,0.000289,7]
[426574240,1782613841000,-500.0,0.000289,7]
[426574239,1782613841000,-500.0,0.000289,7]
[426574235,1782613841000,-500.0,0.000289,7]
[426574233,1782613841000,-500.0,0.000289,7]
[426574234,1782613841000,-500.0,0.000289,7]
[426574236,1782613841000,-500.0,0.000289,7]
[426574237,1782613841000,-500.0,0.000289,7]
[426574261,1782613841000,-500.0,0.000289,7]
[426574247,1782613841000,-500.0,0.000289,7]
[426574257,1782613841000,-315.86,0.000289,7]
[426574272,1782613841000,-500.0,0.00028999,2]
[426574260,1782613841000,-500.0,0.000289,7]
[426574283,1782613841000,-500.0,0.00029,2]
[426574284,1782613841000,-2900.65668298,0.00029,2]
[426574282,1782613841000,-500.0,0.00029,2]
[426574281,1782613841000,-500.0,0.00029,2]
[426574279,1782613841000,-500.0,0.00028999,7]
[426574280,1782613841000,-1947.0,0.00029,5]
[426574278,1782613841000,-500.0,0.00028999,2]
[426574274,1782613841000,-500.0,0.00028999,7]
[426574277,1782613841000,-500.0,0.00028999,2]
[426574276,1782613841000,-500.0,0.00028999,7]
[426574275,1782613841000,-500.0,0.00028999,7]
[426574256,1782613841000,-500.0,0.000289,7]
[426574273,1782613841000,-500.0,0.00028999,30]
[426574268,1782613841000,-75.82501943,0.00028973,2]
[426574267,1782613841000,-104.24671227,0.00028973,2]
[426574266,1782613841000,-1048.42676457,0.00028926,2]
[426574264,1782613841000,-248.28,0.000289,7]
[426574271,1782613841000,-646.23243154,0.00028999,15]
[426574263,1782613841000,-500.0,0.000289,7]
[426574270,1782613841000,-314.54442472,0.00028999,10]
[426574265,1782613841000,-8900.0,0.000289,10]
[426574262,1782613841000,-500.0,0.000289,7]
[426574259,1782613841000,-500.0,0.000289,7]
[426574258,1782613841000,-500.0,0.000289,7]
[426574269,1782613841000,-152.0,0.00028998,4]
[426574290,1782613842000,-202.95767912,0.00024419,2]
[426574289,1782613842000,-500.0,0.00024145,2]
[426574288,1782613842000,-500.0,0.00023871,2]
[426574291,1782613842000,-154.0,0.00028649,30]
[426574293,1782613842000,-199.03318576,0.00029,2]
[426574292,1782613842000,-2417.51976161,0.00029,2]
[426574305,1782613845000,-935.0,0.00029,2]
[426574304,1782613845000,-20.90782837,0.00029,2]
[426574303,1782613845000,-1811.40355257,0.00029,2]
[426574301,1782613845000,-500.0,0.00029,2]
[426574302,1782613845000,-500.0,0.00029,2]
[426574299,1782613845000,-151.0,0.00024186,2]
[426574300,1782613845000,-2507.05036965,0.00029,2]
[426574310,1782613846000,-11983.47568426,0.00029,2]
[426574309,1782613846000,-3040.7143,0.00029,2]
[426574308,1782613846000,-7441.38284878,0.00029,2]
[426574307,1782613846000,-9889.12026801,0.00029,2]
[426574306,1782613846000,-1297.92282859,0.00029,2]
[426574311,1782613906000,152.0,0.000289,120]
[426574313,1782613906000,164.98757283,0.000289,120]
[426574312,1782613906000,152.0,0.000289,120]
[426574314,1782613914000,500.0,0.00037299,120]
[426574317,1782613915000,365.32460663,0.00037299,120]
[426574315,1782613915000,500.0,0.00037299,120]
[426574318,1782613921000,964.26128763,0.00022,120]
[426574320,1782613944000,500.0,0.00037299,120]
[426574321,1782613947000,157.928161,0.00014,2]
[426574322,1782614017000,185.97,0.00028599,120]
[426574323,1782614161000,-154.0,0.0002,2]
[426574324,1782614189000,363.35495595,0.00037299,120]
[426574325,1782614214000,-269.77,0.00020701,3]
[426574326,1782614224000,166.66,0.00022846,30]
[426574327,1782614267000,-500.0,0.000199,2]
[426574328,1782614321000,-196.26272763,0.0002035,2]
[426574329,1782614374000,-810.09651068,0.00020628,2]
[426574330,1782614386000,-189.90348932,0.00020628,2]
[426574331,1782614427000,250.0,0.00014,2]
[426574332,1782614439000,-160.0,0.0002064,2]
[426574333,1782614493000,-240.0,0.00020664,2]
[426574334,1782614522000,640.09586611,0.00037298,120]
[426574335,1782614546000,-1000.0,0.00020693,2]
[426574336,1782614599000,-160.0,0.00020705,2]
[426574338,1782614709000,151.00000099,0.00031507,120]
[426574339,1782614812000,162.22873575,0.00037297,120]
[426574344,1782614835000,-435.06191133,0.00020734,2]
[426574342,1782614835000,-1000.0,0.00020728,2]
[426574343,1782614835000,-160.0,0.00020734,2]
[426574340,1782614835000,-163.94151289,0.00020478,2]
[426574341,1782614835000,-1000.0,0.00020725,2]
[426574346,1782614938000,166.66,0.00022625,30]
[426574345,1782614938000,166.66,0.00022159,30]
[426574348,1782614945000,-159.40464496,0.00020478,2]
[426574347,1782614945000,-155.0,0.0002,2]
[426574349,1782614956000,-1000.0,0.00020764,2]
[426574350,1782614957000,775.88314443,0.0002262,30]
[426574352,1782614957000,-1000.0,0.0002079,2]
[426574351,1782614957000,-160.0,0.00020764,2]
[426574353,1782614957000,-204.4892609,0.00020846,2]
[426574355,1782614957000,-160.0,0.00020998,2]
[426574354,1782614957000,-246.0,0.00020946,2]
[426574356,1782614957000,-167.0,0.00021,2]
[426574357,1782614957000,-216.54711319,0.00021004,2]
[426574359,1782614957000,-3100.066498,0.00021278,2]
[426574358,1782614957000,-246.0,0.00021154,2]
[426574361,1782614957000,-246.0,0.00021569,2]
[426574360,1782614957000,-246.0,0.00021361,2]
[426574370,1782614957000,-193.0,0.00022526,2]
[426574364,1782614957000,-378.48628528,0.00021936,2]
[426574362,1782614957000,-348.06537541,0.00021606,2]
[426574375,1782614957000,-1736.20152224,0.00022936,2]
[426574373,1782614957000,-250.0,0.000228,2]
[426574372,1782614957000,-246.0,0.00022606,2]
[426574367,1782614957000,-250.0,0.00022,2]
[426574374,1782614957000,-253.0,0.00022813,2]
[426574368,1782614957000,-246.0,0.00022191,2]
[426574371,1782614957000,-342.69027907,0.00022526,2]
[426574363,1782614957000,-246.0,0.00021776,2]
[426574366,1782614957000,-250.0,0.00022,2]
[426574365,1782614957000,-246.0,0.00021983,2]
[426574369,1782614957000,-246.0,0.00022398,2]
[426574378,1782615031000,-306.09674136,0.00021936,2]
[426574416,1782615032000,-2492.22,0.00023816,2]
[426574402,1782615032000,-501.78954076,0.00023181,2]
[426574403,1782615032000,-11207.14,0.00023379,2]
[426574404,1782615032000,-200.0,0.00023427,2]
[426574406,1782615032000,-1021.38,0.00023717,2]
[426574408,1782615032000,-1200.58,0.00023717,2]
[426574407,1782615032000,-2133.27,0.00023717,2]
[426574410,1782615032000,-4999.99,0.00023717,2]
[426574412,1782615032000,-4193.53,0.00023717,2]
[426574418,1782615032000,-447.87,0.00023874,2]
[426574409,1782615032000,-9999.99,0.00023717,2]
[426574413,1782615032000,-150.99,0.00023717,2]
[426574414,1782615032000,-9999.99,0.00023717,2]
[426574405,1782615032000,-166.66,0.00023558,30]
[426574411,1782615032000,-9999.99,0.00023717,2]
[426574417,1782615032000,-1290.09,0.00023863,2]
[426574419,1782615032000,-200.0,0.00023928,2]
[426574415,1782615032000,-156.01,0.00023758,2]
[426574401,1782615032000,-500.0,0.00023181,2]
[426574394,1782615032000,-500.0,0.00023094,2]
[426574400,1782615032000,-367.91545713,0.00023181,2]
[426574381,1782615032000,-134.28266626,0.00021936,2]
[426574382,1782615032000,-910.0,0.00022225,2]
[426574383,1782615032000,-150.0,0.00022248,2]
[426574386,1782615032000,-991.78619573,0.00022717,2]
[426574388,1782615032000,-16639.52831772,0.00022936,2]
[426574384,1782615032000,-250.0,0.00022327,2]
[426574387,1782615032000,-1944.187332,0.00022821,2]
[426574390,1782615032000,-166.66,0.00023092,30]
[426574389,1782615032000,-151.0,0.00022936,2]
[426574385,1782615032000,-312.27016892,0.00022669,2]
[426574392,1782615032000,-500.0,0.00023094,2]
[426574393,1782615032000,-500.0,0.00023094,2]
[426574391,1782615032000,-500.0,0.00023094,2]
[426574395,1782615032000,-838.0,0.0002318,2]
[426574396,1782615032000,-485.83413704,0.00023181,2]
[426574397,1782615032000,-500.0,0.00023181,2]
[426574398,1782615032000,-538.42378366,0.00023181,2]
[426574399,1782615032000,-500.0,0.00023181,2]
[426574420,1782615032000,-3157.55,0.00023965,2]
[426574430,1782615032000,-265.22,0.0002424,2]
[426574424,1782615032000,-342.71,0.00024105,2]
[426574445,1782615032000,-237.56313019,0.00025608,14]
[426574447,1782615032000,-480.8331,0.00025608,14]
[426574450,1782615032000,-500.0,0.00025658,7]
[426574452,1782615032000,-500.0,0.00025658,7]
[426574448,1782615032000,-187.37,0.00025638,2]
[426574449,1782615032000,-500.0,0.00025658,7]
[426574451,1782615032000,-500.0,0.00025658,7]
[426574454,1782615032000,-500.0,0.00025658,7]
[426574453,1782615032000,-500.0,0.00025658,7]
[426574455,1782615032000,-500.0,0.00025658,7]
[426574456,1782615032000,-500.0,0.00025658,7]
[426574460,1782615032000,-502.5284731,0.00025658,7]
[426574458,1782615032000,-500.0,0.00025658,7]
[426574457,1782615032000,-500.0,0.00025658,7]
[426574459,1782615032000,-500.0,0.00025658,7]
[426574461,1782615032000,-378.34963289,0.00025658,7]
[426574422,1782615032000,-5000.0,0.00024043,2]
[426574446,1782615032000,-355.38023505,0.00025608,14]
[426574443,1782615032000,-19559.81844028,0.00025558,2]
[426574435,1782615032000,-166.14,0.00024691,2]
[426574444,1782615032000,-4300.00181721,0.00025558,2]
[426574423,1782615032000,-204.4892609,0.00024074,2]
[426574425,1782615032000,-250.0,0.0002413,2]
[426574427,1782615032000,-999.99,0.00024174,2]
[426574426,1782615032000,-7389.42,0.00024174,2]
[426574428,1782615032000,-1564.62,0.00024174,2]
[426574429,1782615032000,-3759.43,0.00024174,2]
[426574431,1782615032000,-428.05,0.00024255,2]
[426574432,1782615032000,-150.0,0.00024305,2]
[426574421,1782615032000,-166.66,0.00024025,30]
[426574442,1782615032000,-428.05,0.00025467,2]
[426574436,1782615032000,-428.05,0.00024861,2]
[426574433,1782615032000,-584.64,0.00024323,2]
[426574437,1782615032000,-151.65083957,0.00024864,2]
[426574439,1782615032000,-169.72,0.00025109,2]
[426574441,1782615032000,-151.65083957,0.00025412,2]
[426574438,1782615032000,-260.52820505,0.00024989,2]
[426574440,1782615032000,-151.65083957,0.00025138,2]
[426574434,1782615032000,-166.66,0.00024491,30]
[426574475,1782615033000,-23859.82025747,0.00026545,2]
[426574473,1782615033000,-1370.3282108,0.00026495,2]
[426574476,1782615033000,-428.05,0.0002668,2]
[426574482,1782615033000,-536.12,0.00027397,10]
[426574479,1782615033000,-20.02390302,0.00027056,2]
[426574481,1782615033000,-151.65083957,0.0002733,2]
[426574477,1782615033000,-151.65083957,0.00026782,2]
[426574483,1782615033000,-1022.34,0.00027397,10]
[426574480,1782615033000,-131.62693655,0.00027056,2]
[426574478,1782615033000,-23859.82025747,0.00027039,2]
[426574469,1782615033000,-151.65083957,0.00026234,2]
[426574472,1782615033000,-196.69020887,0.0002634,2]
[426574471,1782615033000,-379.70449908,0.0002634,2]
[426574484,1782615033000,-153.0,0.000275,7]
[426574468,1782615033000,-502.0,0.00026137,2]
[426574465,1782615033000,-428.044673,0.0002601,2]
[426574467,1782615033000,-428.05,0.00026074,2]
[426574466,1782615033000,-23859.82025747,0.00026052,2]
[426574464,1782615033000,-151.65083957,0.0002596,2]
[426574462,1782615033000,-150.0,0.00025675,7]
[426574463,1782615033000,-151.65083957,0.00025686,2]
[426574474,1782615033000,-151.65083957,0.00026508,2]
[426574486,1782615033000,-23859.82025747,0.00027532,2]
[426574470,1782615033000,-350.32075722,0.0002634,2]
[426574488,1782615033000,-151.65083958,0.00027604,2]
[426574489,1782615033000,-3575.518,0.00027941,2]
[426574508,1782615033000,-1255.35563514,0.00028144,2]
[426574506,1782615033000,-500.0,0.00028025,2]
[426574505,1782615033000,-500.0,0.00028025,2]
[426574507,1782615033000,-447.36393399,0.00028026,2]
[426574503,1782615033000,-19954.50632348,0.00028026,2]
[426574504,1782615033000,-3457.95,0.00028026,2]
[426574502,1782615033000,-500.0,0.00028025,2]
[426574501,1782615033000,-500.0,0.00028025,2]
[426574500,1782615033000,-308.12318939,0.00028025,2]
[426574497,1782615033000,-173.77253875,0.00028025,2]
[426574509,1782615033000,-2179.23451974,0.00028196,2]
[426574494,1782615033000,-5988.6505144,0.00027955,2]
[426574496,1782615033000,-500.0,0.00028025,2]
[426574495,1782615033000,-490.42583101,0.00028025,2]
[426574498,1782615033000,-346.40783914,0.00028025,2]
[426574493,1782615033000,-935.0,0.00027941,2]
[426574492,1782615033000,-282.0,0.00027941,2]
[426574491,1782615033000,-1361.0,0.00027941,2]
[426574490,1782615033000,-1277.0,0.00027941,2]
[426574487,1782615033000,-12126.33990424,0.00027534,2]
[426574485,1782615033000,-500.0,0.000275,7]
[426574499,1782615033000,-500.0,0.00028025,2]
[426574510,1782615034000,151.06,0.00029779,120]
[426574516,1782615037000,-151.06,0.00023823,2]
[426574515,1782615037000,-242.6,0.00022225,2]
[426574514,1782615037000,-662.4,0.00022225,2]
[426574519,1782615037000,-500.0,0.00024995,2]
[426574518,1782615037000,-470.88335982,0.00024995,2]
[426574517,1782615037000,-482.15123953,0.00024995,2]
[426574535,1782615038000,-500.0,0.00024995,2]
[426574541,1782615038000,-500.0,0.00024995,2]
[426574538,1782615038000,-500.0,0.00024995,2]
[426574540,1782615038000,-500.0,0.00024995,2]
[426574545,1782615038000,-500.0,0.00024995,2]
[426574543,1782615038000,-500.0,0.00024995,2]
[426574546,1782615038000,-500.0,0.00024995,2]
[426574548,1782615038000,-500.0,0.00024995,2]
[426574547,1782615038000,-500.0,0.00024995,2]
[426574549,1782615038000,-500.0,0.00024995,2]
[426574554,1782615038000,-500.0,0.00028025,2]
[426574537,1782615038000,-500.0,0.00024995,2]
[426574553,1782615038000,-264.05437736,0.00028025,2]
[426574544,1782615038000,-500.0,0.00024995,2]
[426574539,1782615038000,-500.0,0.00024995,2]
[426574520,1782615038000,-641.64002057,0.00024995,2]
[426574536,1782615038000,-500.0,0.00024995,2]
[426574533,1782615038000,-225.51024412,0.00024995,2]
[426574532,1782615038000,-274.48975588,0.00024995,2]
[426574528,1782615038000,-500.0,0.00024995,2]
[426574531,1782615038000,-500.0,0.00024995,2]
[426574530,1782615038000,-393.01024412,0.00024995,2]
[426574529,1782615038000,-106.98975588,0.00024995,2]
[426574527,1782615038000,-500.0,0.00024995,2]
[426574525,1782615038000,-500.0,0.00024995,2]
[426574526,1782615038000,-643.53468122,0.00024995,2]
[426574524,1782615038000,-500.0,0.00024995,2]
[426574522,1782615038000,-205.94364896,0.00024995,2]
[426574523,1782615038000,-500.0,0.00024995,2]
[426574521,1782615038000,-294.05635104,0.00024995,2]
[426574534,1782615038000,-500.0,0.00024995,2]
[426574551,1782615038000,-151.06,0.00026801,2]
[426574555,1782615038000,-500.0,0.00028025,2]
[426574556,1782615038000,-500.0,0.00028025,2]
[426574584,1782615038000,-151.0,0.00028649,30]
[426574580,1782615038000,-161.34099612,0.00028522,2]
[426574581,1782615038000,-4084.2193715,0.00028555,2]
[426574585,1782615038000,-153.0,0.00028649,30]
[426574583,1782615038000,-1718.79961845,0.0002862,2]
[426574587,1782615038000,-155.0,0.00028649,30]
[426574578,1782615038000,-340.622284,0.00028497,2]
[426574586,1782615038000,-154.0,0.00028649,30]
[426574590,1782615038000,-71377.10763508,0.00028686,2]
[426574589,1782615038000,-157.57021684,0.00028649,30]
[426574591,1782615038000,-904.1372,0.00028686,2]
[426574593,1782615038000,-888.13851771,0.00028686,2]
[426574592,1782615038000,-2380.14,0.00028686,2]
[426574552,1782615038000,-216.923,0.00027941,2]
[426574588,1782615038000,-161.0,0.00028649,30]
[426574582,1782615038000,-7556.92949212,0.00028566,2]
[426574560,1782615038000,-27734.79120308,0.00028196,2]
[426574573,1782615038000,-364.49,0.00028364,7]
[426574558,1782615038000,-500.0,0.00028025,2]
[426574557,1782615038000,-500.0,0.00028025,2]
[426574559,1782615038000,-500.0,0.00028025,2]
[426574579,1782615038000,-23859.82025747,0.00028519,2]
[426574571,1782615038000,-17964.4984073,0.00028361,2]
[426574562,1782615038000,-3143.688,0.00028245,19]
[426574561,1782615038000,-176.993,0.00028245,19]
[426574564,1782615038000,-151.0,0.00028246,2]
[426574567,1782615038000,-10219.5956073,0.00028336,2]
[426574565,1782615038000,-500.0,0.00028335,2]
[426574569,1782615038000,-2810.9876449,0.00028336,2]
[426574575,1782615038000,-7389.42,0.00028364,7]
[426574577,1782615038000,-500.0,0.00028496,7]
[426574563,1782615038000,-151.0,0.00028245,2]
[426574597,1782615039000,-851.95,0.00028509,10]
[426574598,1782615039000,-1407.57311776,0.00028686,2]
[426574605,1782615040000,-330.96748844,0.0002871,2]
[426574600,1782615040000,-1438.72543297,0.00028686,2]
[426574599,1782615040000,-3372.30039565,0.00028686,2]
[426574601,1782615040000,-2959.34812771,0.00028686,2]
[426574604,1782615040000,-1083.33333,0.0002871,2]
[426574603,1782615040000,-7433.63458265,0.00028686,2]
[426574602,1782615040000,-517.06059631,0.00028686,2]
[426574608,1782615040000,-563.0049292,0.00028725,2]
[426574607,1782615040000,-1083.33334,0.0002871,2]
[426574609,1782615040000,-6548.51468397,0.00028725,2]
[426574610,1782615040000,-8943.78386462,0.00028725,2]
[426574611,1782615040000,-9077.54866152,0.00028725,2]
[426574612,1782615040000,-20182.33637226,0.00028725,2]
[426574606,1782615040000,-752.36584156,0.0002871,2]
[426574622,1782615042000,-2037.38500443,0.00028725,2]
[426574623,1782615042000,-136.10357392,0.00028771,2]
[426574624,1782615042000,-663.55041046,0.00028771,2]
[426574625,1782615042000,-1718.79961837,0.00028773,2]
[426574626,1782615042000,-173.28041124,0.00028866,7]
[426574628,1782615042000,-339.97860628,0.00028866,2]
[426574627,1782615042000,-326.71958876,0.00028866,7]
[426574629,1782615042000,-4969.10501786,0.00028867,2]
[426574630,1782615042000,-586.96534291,0.00028867,2]
[426574643,1782615043000,-1326.22056326,0.00028867,2]
[426574644,1782615043000,-864.64,0.00028867,2]
[426574642,1782615043000,-4772.50684395,0.00028867,2]
[426574641,1782615043000,-2170.62158657,0.00028867,2]
[426574640,1782615043000,-868.80671213,0.00028867,2]
[426574651,1782615046000,-463.11319434,0.00028686,2]
[426574650,1782615046000,-315.35064524,0.00028686,2]
[426574649,1782615046000,-597.39434932,0.00028686,2]
[426574688,1782615067000,1252.499739,7.945e-05,2]
[426574691,1782615223000,649.92418294,0.000114,2]
[426574692,1782615223000,1215.44322597,0.000114,2]
[426574695,1782615234000,1102.58694248,0.00013,2]
[426574693,1782615234000,2211.25457659,0.00013,2]
[426574694,1782615234000,1874.38176821,0.00013,2]
[426574696,1782615251000,393649.8569,0.00027948,120]
[426574697,1782615281000,2324.11086008,8e-05,2]
[426574700,1782615281000,1215.4831176,8e-05,2]
[426574699,1782615281000,3426.69780256,8e-05,2]
[426574698,1782615281000,1796.74343811,8e-05,2]
[426574703,1782615286000,925.11660989,0.00011,2]
[426574702,1782615286000,161.0,0.00011,2]
[426574701,1782615286000,646.78286445,0.00011,2]
[426574704,1782615321000,-163.85,0.00017551,2]
[426574705,1782615374000,-151.18,0.00017551,2]
[426574706,1782615428000,-250.0,0.00017776,2]
[426574708,1782615429000,250.0,0.0001375,2]
[426574707,1782615429000,312.52221677,0.000125,2]
[426574713,1782615481000,-150.0,0.0001525,2]
[426574714,1782615535000,-160.0,0.00016,8]
[426574715,1782615538000,209.04,0.00026014,120]
[426574716,1782615588000,-250.0,0.000176,2]
[426574717,1782615641000,-151.0,0.00018,2]
[426574718,1782615695000,-206.0,0.00018997,2]
[426574720,1782615748000,-206.0,0.00019185,2]
[426574721,1782615758000,166.69,0.00029199,120]
[426574722,1782615801000,-160.0,0.00019346,2]
[426574736,1782615944000,-2014.41020653,0.00021918,2]
[426574735,1782615944000,-166.69,0.00021899,2]
[426574732,1782615944000,-381.38387378,0.00021104,2]
[426574734,1782615944000,-251.26916075,0.00021799,2]
[426574733,1782615944000,-1106.725116,0.0002169,2]
[426574731,1782615944000,-151.0,0.00021,2]
[426574730,1782615944000,-281.122421,0.00020918,2]
[426574727,1782615944000,-151.0,0.0002,2]
[426574728,1782615944000,-250.0,0.0002069,2]
[426574729,1782615944000,-160.0,0.0002069,2]
[426574726,1782615944000,-167.0,0.0002,2]
[426574724,1782615944000,-216.54711319,0.0001938,2]
[426574725,1782615944000,-250.0,0.000198,2]
[426574738,1782616040000,-151.0,0.00021918,2]
[426574739,1782616040000,-152.0,0.00021918,2]
[426574737,1782616040000,-171.34,0.0001804,2]
[426574741,1782616040000,-2003.08461495,0.00021918,2]
[426574742,1782616040000,-151.70388559,0.0002196,2]
[426574740,1782616040000,-982.50517852,0.00021918,2]
[426574743,1782616054000,-51.77917268,0.0002196,2]
[426574745,1782616054000,-394.95469289,0.00022,2]
[426574744,1782616054000,-150.0,0.0002198,2]
[426574747,1782616054000,-165.0,0.00022136,2]
[426574746,1782616054000,-165.57501254,0.00022,2]
[426574748,1782616054000,-251.26916073,0.0002235,2]
[426574751,1782616054000,-3191.39,0.00022518,2]
[426574750,1782616054000,-200.0,0.00022456,2]
[426574752,1782616054000,-165.0,0.00022574,2]
[426574753,1782616054000,-165.0,0.00022793,2]
[426574754,1782616054000,-2652.4,0.00022825,2]
[426574756,1782616054000,-617.69221986,0.00022959,2]
[426574755,1782616054000,-251.26916073,0.000229,2]
[426574749,1782616054000,-165.0,0.00022355,2]
[426574757,1782616100000,500.0,0.00037299,120]
[426574758,1782616100000,500.0,0.00037299,120]
[426574759,1782616100000,500.0,0.00037299,120]
[426574761,1782616101000,209.41694042,0.00037299,120]
[426574760,1782616101000,500.0,0.00037299,120]
[426574762,1782616158000,-500.0,0.00021447,2]
[426574764,1782616171000,-181.390209,0.00021447,2]
[426574763,1782616171000,-500.0,0.00021447,2]
[426574767,1782616183000,-2051.05622805,0.00021447,2]
[426574766,1782616183000,-641.64002057,0.00021447,2]
[426574768,1782616195000,-150.0,0.0002166,2]
[426574771,1782616217000,151.0,0.00018,2]
[426574815,1782616232000,-500.0,0.00024547,2]
[426574813,1782616232000,-500.0,0.00024547,2]
[426574809,1782616232000,-500.0,0.00024547,2]
[426574814,1782616232000,-500.0,0.00024547,2]
[426574805,1782616232000,-645.7913946,0.00024547,2]
[426574811,1782616232000,-500.0,0.00024547,2]
[426574810,1782616232000,-500.0,0.00024547,2]
[426574816,1782616232000,-500.0,0.00024547,2]
[426574804,1782616232000,-594.14,0.00024397,2]
[426574812,1782616232000,-500.0,0.00024547,2]
[426574817,1782616232000,-500.0,0.00024547,2]
[426574824,1782616232000,-500.0,0.00024547,2]
[426574819,1782616232000,-500.0,0.00024547,2]
[426574820,1782616232000,-500.0,0.00024547,2]
[426574821,1782616232000,-500.0,0.00024547,2]
[426574806,1782616232000,-500.0,0.00024547,2]
[426574823,1782616232000,-500.0,0.00024547,2]
[426574822,1782616232000,-500.0,0.00024547,2]
[426574825,1782616232000,-500.0,0.00024547,2]
[426574828,1782616232000,-500.0,0.00024547,2]
[426574826,1782616232000,-500.0,0.00024547,2]
[426574827,1782616232000,-500.0,0.00024547,2]
[426574818,1782616232000,-500.0,0.00024547,2]
[426574803,1782616232000,-500.0,0.00024313,2]
[426574779,1782616232000,-242.0,0.00022732,2]
[426574802,1782616232000,-250.0,0.0002411,2]
[426574775,1782616232000,-150.0,0.00021875,2]
[426574776,1782616232000,-150.0,0.00022089,2]
[426574777,1782616232000,-150.0,0.00022303,2]
[426574778,1782616232000,-150.0,0.00022518,2]
[426574780,1782616232000,-150.0,0.00022958,2]
[426574781,1782616232000,-383.70557099,0.00022959,2]
[426574782,1782616232000,-150.0,0.00022959,2]
[426574784,1782616232000,-9999.99,0.0002296,2]
[426574786,1782616232000,-22933.49,0.0002296,2]
[426574787,1782616232000,-160.0,0.00022967,2]
[426574785,1782616232000,-3554.99,0.0002296,2]
[426574783,1782616232000,-162.78835443,0.0002296,2]
[426574788,1782616232000,-161.44,0.0002297,2]
[426574790,1782616232000,-436.65,0.0002297,2]